bitfinex-derivatives/quotes_ETHF0:USTF0_20250214
["timestamp","ask_amount","ask_price","bid_price","bid_amount"]
[1739509283110,4.19075537,2701.9,2701.8,0.00555463]
[1739509284599,3.45064537,2701.9,2701.8,0.74569463]
[1739509284801,2.91044537,2701.9,2701.8,0.74569463]
[1739509286909,3.2078,2702.1,2701.9,0.74009]
[1739509287105,3.2078,2702.1,2702.0,0.5456]
[1739509287409,6.11824537,2702.4,2702.2,0.74001]
[1739509287608,6.11824537,2702.4,2702.2,3.65269279]
[1739509288403,6.11824537,2702.4,2702.2,2.91268279]
[1739509289615,2.91044537,2702.4,2702.3,0.74]
[1739509290317,0.5778,2702.6,2702.5,0.73995]
[1739509290707,0.5778,2702.6,2702.2,2.91268279]
[1739509290907,0.5778,2702.6,2702.4,0.73995]
[1739509291108,0.5778,2702.6,2702.3,0.73999]
[1739509291500,0.5778,2702.6,2702.4,0.73997]
[1739509292210,0.5778,2702.6,2702.3,0.73999]
[1739509292608,0.5778,2702.6,2702.2,2.91268279]
[1739509292813,0.5778,2702.6,2702.2,3.65269279]
[1739509293201,3.7856,2702.6,2702.3,0.73999]
[1739509293403,3.7856,2702.6,2702.2,3.65270279]
[1739509294915,3.7856,2702.6,2702.2,2.91268279]
[1739509295116,3.7856,2702.6,2702.3,0.74]
[1739509295914,3.7856,2702.6,2702.2,2.91268279]
[1739509296211,3.7856,2702.6,2702.3,0.73999]
[1739509297114,3.7856,2702.6,2702.4,0.73996]
[1739509297316,0.5778,2702.6,2702.2,2.91268279]
[1739509298107,0.5778,2702.6,2702.4,0.73995]
[1739509298504,0.5778,2702.6,2702.2,2.91268279]
[1739509298915,0.5778,2702.6,2702.4,0.73998]
[1739509301416,0.5778,2702.6,2702.2,2.91268279]
[1739509301605,0.5778,2702.6,2702.5,0.73995]
[1739509302913,0.5778,2702.6,2702.4,0.73996]
[1739509303520,0.5778,2702.6,2702.5,0.73995]
[1739509303714,0.5778,2702.6,2702.4,0.73995]
[1739509304409,0.5778,2702.6,2702.5,2.91268279]
[1739509304612,0.5778,2702.6,2702.5,3.65263279]
[1739509304914,0.5418,2702.8,2702.6,0.7399]
[1739509305114,0.5418,2702.8,2702.6,1.8651]
[1739509305623,0.5418,2702.8,2702.7,0.73989]
[1739509306024,0.5418,2702.8,2702.6,1.1252]
[1739509306209,0.5418,2702.8,2702.6,1.86511]
[1739509306415,0.5418,2702.8,2702.6,1.1252]
[1739509306620,0.5418,2702.8,2702.6,1.8651]
[1739509307322,1.0877,2702.8,2702.6,1.8651]
[1739509309834,1.0877,2702.8,2702.7,0.73989]
[1739509310029,1.0877,2702.8,2702.6,1.1252]
[1739509310233,1.0877,2702.8,2702.6,1.8651]
[1739509311930,1.0877,2702.8,2702.6,1.1252]
[1739509312742,1.0877,2702.8,2702.6,1.324]
[1739509315032,1.0877,2702.8,2702.7,0.73989]
[1739509316143,3.7802,2702.9,2702.7,3.65256279]
[1739509317448,0.73995,2702.5,2702.0,6.12048279]
[1739509317636,0.5396,2702.4,2702.1,1.29865]
[1739509317837,0.5514,2702.3,2702.1,1.29865]
[1739509318144,0.5514,2702.3,2702.0,3.2078]
[1739509318442,0.7401,2702.0,2701.8,0.00555463]
[1739509318639,3.2078,2701.9,2701.8,0.00555463]
[1739509318840,3.7528,2701.9,2701.8,0.74569463]
[1739509319041,0.545,2701.9,2701.8,0.74569463]
[1739509321344,3.7847,2702.2,2701.8,0.00555463]
[1739509321545,0.5942,2702.1,2701.9,0.5731]
[1739509322046,0.5942,2702.1,2701.9,1.3132]
[1739509322440,0.5942,2702.1,2702.0,0.5804]
[1739509325749,0.5942,2702.1,2702.0,1.32048]
[1739509328045,0.74011,2701.9,2701.8,0.00555463]
[1739509328250,3.94791,2701.9,2701.8,0.00555463]
[1739509329053,3.2078,2701.9,2701.8,0.00555463]
[1739509329754,3.94791,2701.9,2701.8,0.00555463]
[1739509330340,5.0581,2701.9,2700.8,2.91268279]
[1739509330544,5.0581,2701.9,2700.9,5.80158083]
[1739509330545,3.94809,2701.3,2700.9,5.80158083]
[1739509330745,1.1408,2701.2,2700.9,0.74037]
[1739509330946,1.1408,2701.2,2701.0,0.74035]
[1739509331554,1.1408,2701.2,2701.1,0.74033]
[1739509331753,1.1408,2701.2,2700.8,6.12603742]
[1739509331945,1.1408,2701.2,2701.0,0.74034]
[1739509332350,1.1408,2701.2,2700.8,6.12603742]
[1739509332554,1.1408,2701.2,2700.8,3.65864742]
[1739509333057,1.1408,2701.2,2700.9,0.74038]
[1739509333257,1.1408,2701.2,2700.9,1.30578]
[1739509333556,1.1408,2701.2,2700.9,0.5654]
[1739509334652,1.88112,2701.2,2700.9,0.5654]
[1739509335753,1.1408,2701.2,2700.9,0.5654]
[1739509336049,0.74034,2701.1,2700.9,0.5654]
[1739509336455,1.1408,2701.2,2700.9,0.5654]
[1739509336849,1.88113,2701.2,2700.9,0.5654]
[1739509337153,0.74033,2701.1,2700.9,0.5654]
[1739509337352,1.1408,2701.2,2700.9,0.5654]
[1739509337748,0.74033,2701.1,2700.8,0.00555463]
[1739509338157,1.1408,2701.2,2700.8,0.00555463]
[1739509338356,0.74039,2700.9,2700.8,0.00555463]
[1739509338555,3.94817,2701.0,2700.8,0.00555463]
[1739509339059,0.74039,2700.9,2700.8,0.00555463]
[1739509339361,3.65083537,2700.9,2700.8,0.00555463]
[1739509340955,3.65083537,2700.9,2700.2,2.91268279]
[1739509340956,2.91044537,2700.9,2700.1,40.8]
[1739509341156,0.74051,2700.5,2700.2,0.74056]
[1739509341362,0.74051,2700.5,2700.0,4.9206]
[1739509341363,1.1068,2700.4,2700.0,4.9206]
[1739509341863,1.1068,2700.4,2700.0,45.7206]
[1739509342155,1.1068,2700.4,2700.3,0.74055]
[1739509342966,3.2078,2700.7,2700.4,0.7405]
[1739509343263,3.7585,2700.7,2700.2,2.91268279]
[1739509344762,3.7585,2700.7,2700.4,0.7405]
[1739509344966,3.7585,2700.7,2700.5,0.5812]
[1739509345156,3.7585,2700.7,2700.5,1.1579]
[1739509345760,0.5507,2700.7,2700.6,0.74047]
[1739509345967,2.91044537,2700.9,2700.5,4.07058279]
[1739509346269,2.91044537,2700.9,2700.8,3.65309279]
[1739509346562,0.5836,2701.1,2701.0,0.74036]
[1739509346959,0.5836,2701.1,2700.9,0.5724]
[1739509347161,0.5836,2701.1,2700.9,1.31278]
[1739509347557,0.5836,2701.1,2701.0,0.74036]
[1739509348065,0.5836,2701.1,2701.0,0.5656]
[1739509348265,0.5836,2701.1,2701.0,1.30596]
[1739509349755,0.5836,2701.1,2701.0,0.5656]
[1739509350362,2.91044537,2701.2,2701.1,0.74033]
[1739509350564,2.91044537,2701.2,2701.1,3.65301279]
[1739509350767,2.91044537,2701.2,2701.1,4.20651279]
[1739509352670,0.00555463,2701.4,2701.1,4.20651279]
[1739509352671,0.00555463,2701.4,2701.3,0.74028]
[1739509353773,0.00555463,2701.4,2701.1,4.20650279]
[1739509353969,0.00555463,2701.4,2701.1,3.46618279]
[1739509354267,0.00555463,2701.4,2701.1,2.91268279]
[1739509354471,0.00555463,2701.4,2701.0,4.51375]
[1739509354472,0.74581463,2701.4,2701.0,4.51375]
[1739509355971,0.74581463,2701.4,2701.1,0.74033]
[1739509356674,0.74032,2701.2,2701.0,0.5656]
[1739509357173,0.5429,2701.1,2701.0,0.5656]
[1739509358476,1.28323,2701.1,2701.0,0.5656]
[1739509358672,0.5429,2701.1,2701.0,0.5656]
[1739509361276,1.7017,2701.1,2701.0,0.5656]
[1739509363471,2.44203,2701.1,2700.9,1.31278]
[1739509363775,1.7017,2701.1,2700.9,1.31278]
[1739509365076,1.7017,2701.1,2700.9,0.5724]
[1739509365377,1.7017,2701.1,2700.9,1.31277]
[1739509366783,2.44203,2701.1,2700.9,1.31277]
[1739509366973,2.44203,2701.1,2700.8,3.65308279]
[1739509367171,1.7017,2701.1,2700.9,0.74038]
[1739509367670,1.7017,2701.1,2700.9,0.74036]
[1739509367875,1.7017,2701.1,2700.8,2.91268279]
[1739509368175,3.2078,2701.3,2701.1,0.74031]
[1739509368477,3.7935,2701.3,2701.1,0.74031]
[1739509369775,3.7935,2701.3,2700.8,2.91268279]
[1739509369975,3.7935,2701.3,2701.1,0.74031]
[1739509370574,3.7935,2701.3,2701.2,0.7403]
[1739509372574,3.7935,2701.3,2700.8,2.91268279]
[1739509372773,3.7935,2701.3,2701.1,0.74032]
[1739509374781,0.5857,2701.3,2701.1,0.74032]
[1739509375284,0.5857,2701.3,2701.2,0.7403]
[1739509377775,0.54805463,2701.4,2701.1,1.30309399]
[1739509377980,0.00555463,2701.4,2701.3,2.04337399]
[1739509379592,0.00555463,2701.4,2701.3,3.94540884]
[1739509379884,0.00555463,2701.4,2701.3,4.48770884]
[1739509381093,0.00555463,2701.4,2701.3,4.19317563]
[1739509381698,0.00555463,2701.4,2701.3,3.65087563]
[1739509387196,0.00555463,2701.4,2701.2,0.74029]
[1739509387392,0.59215463,2701.4,2701.2,0.74029]
[1739509387699,0.59215463,2701.4,2701.0,2.91059563]
[1739509387894,0.5444,2701.3,2701.0,2.91059563]
[1739509388095,0.5444,2701.3,2701.2,0.7403]
[1739509388795,0.5444,2701.3,2701.0,2.91059563]
[1739509389000,3.7702,2701.2,2700.9,0.74038]
[1739509390403,3.7702,2701.2,2701.1,0.74033]
[1739509391296,0.5624,2701.2,2701.1,0.74033]
[1739509391498,0.5624,2701.2,2701.1,1.29493]
[1739509399195,0.5444,2701.3,2701.2,0.7403]
[1739509400107,1.1046,2701.3,2701.2,0.7403]
[1739509403714,1.1046,2701.3,2701.2,2.04333825]
[1739509404511,1.1046,2701.3,2701.0,1.30303825]
[1739509404711,3.94812,2701.2,2700.8,2.04344825]
[1739509405411,3.2078,2701.2,2700.8,1.30303825]
[1739509405611,3.2078,2701.2,2701.0,0.74035]
[1739509407315,0.74033,2701.1,2700.8,0.7404]
[1739509407503,0.74033,2701.1,2700.6,2.91216135]
[1739509407711,0.74033,2701.1,2700.8,0.74041]
[1739509408508,3.94812,2701.2,2700.6,2.91216135]
[1739509408708,3.94812,2701.2,2700.9,0.74038]
[1739509409526,0.74033,2701.1,2700.9,0.74038]
[1739509410018,3.94812,2701.2,2700.9,0.74038]
[1739509410817,3.94812,2701.2,2701.0,0.74036]
[1739509411616,3.2078,2701.2,2700.6,2.91216135]
[1739509411813,3.2078,2701.2,2701.1,0.74033]
[1739509418623,4.01504537,2701.3,2701.2,0.7403]
[1739509421025,1.1046,2701.3,2701.2,0.7403]
[1739509424824,1.1046,2701.3,2700.9,3.49306135]
[1739509425628,1.1046,2701.3,2701.2,1.30301258]
[1739509428631,1.1046,2701.3,2701.2,2.04331258]
[1739509429136,1.1046,2701.3,2701.2,1.30301258]
[1739509432235,1.1046,2701.3,2701.2,2.04331258]
[1739509432430,1.1046,2701.3,2701.2,1.30301258]
[1739509434928,1.84488,2701.3,2701.2,1.30301258]
[1739509435134,0.74031,2701.2,2701.0,1.30301258]
[1739509435343,3.94811,2701.2,2701.0,1.30301258]
[1739509435735,0.74033,2701.1,2701.0,1.30301258]
[1739509436132,3.94812,2701.2,2701.0,1.30301258]
[1739509437437,3.94812,2701.2,2701.0,2.04337258]
[1739509438241,3.94812,2701.2,2701.0,1.30301258]
[1739509439141,3.94812,2701.2,2701.0,2.04336258]
[1739509440539,0.74034,2701.1,2700.9,0.74037]
[1739509440738,3.94813,2701.2,2700.8,1.30301258]
[1739509441042,3.94813,2701.2,2700.9,0.74037]
[1739509441246,0.74034,2701.1,2700.9,0.74037]
[1739509441434,0.5453,2701.0,2700.9,0.74037]
[1739509441640,1.1341,2701.0,2700.9,0.74037]
[1739509441942,1.1341,2701.0,2700.8,2.04340258]
[1739509442143,0.5416,2700.9,2700.8,2.04340258]
[1739509443835,0.5416,2700.9,2700.7,1.0796]
[1739509444039,0.5416,2700.9,2700.7,0.5384]
[1739509444437,1.28199,2700.9,2700.6,5.25126258]
[1739509444640,0.5416,2700.9,2700.6,4.51081258]
[1739509444845,0.5416,2700.9,2700.7,0.74042]
[1739509445044,0.5416,2700.9,2700.7,1.85952]
[1739509445547,0.5416,2700.9,2700.7,1.1191]
[1739509447448,0.5416,2700.9,2700.7,0.5755]
[1739509447449,3.2078,2700.8,2700.7,0.5755]
[1739509447649,3.94821,2700.8,2700.6,1.30301258]
[1739509447844,3.94821,2700.8,2700.4,1.83001]
[1739509447845,1.31254,2700.7,2700.3,3.94834]
[1739509448038,0.5691,2700.6,2700.3,3.94834]
[1739509448242,0.5769,2700.5,2700.2,2.04358258]
[1739509448447,0.5769,2700.5,2700.2,1.30301258]
[1739509448640,0.74056,2700.3,2700.0,1.30301258]
[1739509449050,3.7799,2700.2,2699.9,0.58425463]
[1739509449247,3.7799,2700.2,2699.9,0.00555463]
[1739509449248,0.74063,2700.0,2699.9,0.00555463]
[1739509449640,0.5691,2700.1,2699.9,0.00555463]
[1739509449851,1.30973,2700.1,2699.9,0.00555463]
[1739509450149,0.74063,2700.0,2699.9,0.00555463]
[1739509450344,1.33133,2700.0,2699.9,0.00555463]
[1739509452259,0.74072,2699.7,2699.3,0.74081]
[1739509452447,1.1312,2699.6,2699.3,0.74081]
[1739509453252,0.5879,2699.5,2699.3,0.74081]
[1739509453440,0.5879,2699.5,2699.4,0.7408]
[1739509454252,0.5879,2699.5,2699.3,0.74082]
[1739509454652,0.5879,2699.5,2699.2,0.74639463]
[1739509455351,0.5879,2699.5,2699.2,0.00555463]
[1739509456646,0.5879,2699.5,2699.2,0.74638463]
[1739509456846,0.5879,2699.5,2699.2,0.00555463]
[1739509457042,0.7408,2699.4,2699.2,0.00555463]
[1739509457647,3.9486,2699.4,2699.2,0.00555463]
[1739509458854,3.2078,2699.4,2699.2,0.00555463]
[1739509459155,0.74082,2699.3,2699.2,0.00555463]
[1739509459548,2.91044537,2699.3,2699.2,0.00555463]
[1739509461850,3.65126537,2699.3,2699.2,0.00555463]
[1739509471469,0.74082,2699.3,2699.2,0.00555463]
[1739509471663,4.8168,2699.4,2699.3,0.74082]
[1739509471868,4.8168,2699.4,2699.2,0.00555463]
[1739509472060,5.5576,2699.4,2699.2,0.74638463]
[1739509472263,5.5576,2699.4,2699.2,0.74639463]
[1739509473070,4.8168,2699.4,2699.2,0.00555463]
[1739509473271,0.74082,2699.3,2699.2,0.00555463]
[1739509474863,2.0459117,2699.3,2699.2,0.00555463]
[1739509477363,3.2078,2699.4,2699.2,0.00555463]
[1739509477562,3.94861,2699.4,2699.2,0.74639463]
[1739509477867,0.74082,2699.3,2699.2,0.00555463]
[1739509478668,3.94862,2699.4,2699.2,0.74640463]
[1739509478865,0.74082,2699.3,2699.2,0.00555463]
[1739509479372,3.2078,2699.4,2699.2,0.00555463]
[1739509479868,3.2078,2699.4,2699.3,0.74082]
[1739509480068,3.2078,2699.4,2699.3,1.33532]
[1739509480964,3.2078,2699.4,2699.3,0.5945]
[1739509481167,3.9486,2699.4,2699.3,0.5945]
[1739509481366,3.2078,2699.4,2699.3,1.33532]
[1739509481672,3.79425897,2699.4,2699.3,0.5945]
[1739509481977,3.79425897,2699.4,2699.3,1.33532]
[1739509482473,3.79425897,2699.4,2699.3,0.5945]
[1739509483173,4.53505897,2699.4,2699.3,0.5945]
[1739509483671,3.79425897,2699.4,2699.3,0.5945]
[1739509484670,3.79425897,2699.4,2699.3,1.33532]
[1739509485973,3.79425897,2699.4,2699.3,0.5945]
[1739509486675,3.79425897,2699.4,2699.3,1.33532]
[1739509487066,3.79425897,2699.4,2699.3,0.5945]
[1739509488473,0.58645897,2699.4,2699.3,1.33532]
[1739509488677,0.74082,2699.3,2699.2,0.00555463]
[1739509488976,2.0459117,2699.3,2699.2,0.00555463]
[1739509489268,2.91044537,2699.4,2699.2,0.00555463]
[1739509489477,3.49690434,2699.4,2699.3,0.74082]
[1739509489974,3.49690434,2699.4,2699.3,1.1307]
[1739509490182,2.91044537,2699.4,2699.3,1.1307]
[1739509490474,2.91044537,2699.4,2699.3,1.87152]
[1739509490671,2.91044537,2699.4,2699.3,1.1307]
[1739509491061,2.91044537,2699.4,2699.3,1.87152]
[1739509491776,2.91044537,2699.4,2699.3,1.1307]
[1739509492271,1.17435897,2699.5,2699.3,1.1307]
[1739509492674,1.17435897,2699.5,2699.3,1.87152]
[1739509495772,2.47945067,2699.5,2699.2,0.00555463]
[1739509496277,2.47945067,2699.5,2699.3,0.74081]
[1739509499173,2.47945067,2699.5,2699.2,0.74639463]
[1739509499674,0.7408,2699.4,2699.2,0.74639463]
[1739509500174,0.5752,2699.3,2699.2,0.74639463]
[1739509502683,1.31602,2699.3,2699.2,0.00555463]
[1739509502978,0.5752,2699.3,2699.2,0.00555463]
[1739509503181,0.5752,2699.3,2699.2,0.74640463]
[1739509503976,0.5752,2699.3,2699.2,1.33780463]
[1739509504791,3.66037633,2699.7,2699.2,1.90204633]
[1739509504792,0.00555463,2699.7,2699.2,1.90204633]
[1739509504983,0.56025463,2699.7,2699.6,0.74074]
[1739509505191,1.14685569,2699.7,2699.6,0.74074]
[1739509505387,0.59215569,2699.7,2699.6,0.74074]
[1739509505595,0.00555463,2699.7,2699.6,2.48084]
[1739509505991,0.00555463,2699.7,2699.6,1.89084]
[1739509506293,0.56025463,2699.7,2699.6,0.573]
[1739509506490,0.56025463,2699.7,2699.5,2.0458617]
[1739509507493,0.56025463,2699.7,2699.6,0.74074]
[1739509508094,0.56025463,2699.7,2699.5,2.0458517]
[1739509508696,0.56025463,2699.7,2699.6,0.74074]
[1739509508897,0.56025463,2699.7,2699.5,2.0458517]
[1739509509599,0.56025463,2699.7,2699.5,1.3050917]
[1739509509790,1.86534633,2699.7,2699.3,1.3050917]
[1739509509992,4.06023095,2699.7,2699.3,1.3050917]
[1739509510400,4.06023095,2699.7,2699.5,0.74077]
[1739509511201,2.75513925,2699.7,2699.6,0.74074]
[1739509512301,2.75513925,2699.7,2699.5,0.74075]
[1739509512602,4.80094095,2699.7,2699.4,0.74078]
[1739509512998,0.58588462,2699.6,2699.3,1.3050917]
[1739509513198,0.58588462,2699.6,2699.4,0.74079]
[1739509513398,0.58588462,2699.6,2699.5,0.74077]
[1739509513901,2.75513925,2699.7,2699.6,0.74074]
[1739509514294,2.75513925,2699.7,2699.5,0.74076]
[1739509515190,2.75513925,2699.7,2699.3,1.3050917]
[1739509515401,2.75513925,2699.7,2699.5,0.74074]
[1739509515802,2.75513925,2699.7,2699.3,1.3050917]
[1739509516007,2.75513925,2699.7,2699.6,0.74074]
[1739509516191,2.75513925,2699.7,2699.3,1.3050917]
[1739509516396,2.75513925,2699.7,2699.5,0.74076]
[1739509516695,2.75513925,2699.7,2699.6,0.74074]
[1739509517097,1.14613925,2699.7,2699.6,0.74074]
[1739509517501,0.56025463,2699.7,2699.6,0.74074]
[1739509519108,0.00555463,2699.7,2699.6,0.74074]
[1739509527613,3.46924537,2700.2,2699.5,1.3050917]
[1739509527817,0.5588,2700.2,2700.1,0.7406]
[1739509528009,6.43690512,2700.3,2700.2,0.74058]
[1739509528212,6.43690512,2700.3,2700.2,2.0456717]
[1739509539323,0.5656,2700.4,2700.2,1.3050917]
[1739509539522,0.5656,2700.4,2700.3,0.74055]
[1739509549829,0.5656,2700.4,2700.2,1.3050917]
[1739509550028,0.5656,2700.4,2700.2,2.0456517]
[1739509550225,0.5656,2700.4,2700.3,0.74055]
[1739509551724,3.47604537,2700.4,2700.3,0.74055]
[1739509552229,4.06162065,2700.4,2700.3,0.74055]
[1739509552632,4.06162065,2700.4,2700.2,1.3050917]
[1739509552825,4.06162065,2700.4,2700.2,2.0456517]
[1739509553329,3.94836,2700.3,2700.0,1.3050917]
[1739509553538,0.5401,2700.2,2700.0,1.3050917]
[1739509553825,1.67307528,2700.2,2700.0,2.0457117]
[1739509554427,2.41366528,2700.2,2700.0,1.3050917]
[1739509554632,1.67307528,2700.2,2700.0,1.3050917]
[1739509555224,2.41366528,2700.2,2700.0,2.0457117]
[1739509555425,1.67307528,2700.2,2700.0,1.3050917]
[1739509555633,2.41365528,2700.2,2700.0,2.0457117]
[1739509556027,1.3050917,2700.1,2699.8,1.3050917]
[1739509556232,4.53245,2700.0,2699.8,1.3050917]
[1739509556431,4.53245,2700.0,2699.6,1.3050917]
[1739509556432,1.607,2699.9,2699.6,1.3050917]
[1739509556628,1.607,2699.9,2699.6,2.0458217]
[1739509556629,0.5915,2699.8,2699.6,2.0458217]
[1739509558231,1.33219,2699.8,2699.6,1.3050917]
[1739509558425,4.24265537,2699.8,2699.5,0.74076]
[1739509559236,3.94853,2699.7,2699.4,2.0458717]
[1739509559427,0.5817,2699.6,2699.4,2.0458717]
[1739509559734,1.32245,2699.6,2699.4,1.3050917]
[1739509559933,0.5619,2699.5,2699.4,1.3050917]
[1739509560433,1.8669917,2699.5,2699.2,1.31064633]
[1739509560633,3.2078,2699.4,2699.2,1.31064633]
[1739509560832,1.33232,2699.3,2699.2,1.31064633]
[1739509561131,1.33232,2699.3,2699.2,0.00555463]
[1739509561433,5.54785707,2699.3,2699.2,0.00555463]
[1739509561630,2.6374117,2699.3,2699.2,0.00555463]
[1739509563235,3.22163756,2699.3,2699.2,0.00555463]
[1739509563435,2.6374117,2699.3,2699.2,0.00555463]
[1739509563631,1.33232,2699.3,2699.2,0.00555463]
[1739509565143,6.5915,2699.3,2698.5,2.91685224]
[1739509565328,0.74093,2698.9,2698.6,0.74102]
[1739509565528,1.1399,2698.8,2698.6,0.74102]
[1739509566535,1.88086,2698.8,2698.5,0.74102]
[1739509566734,1.1399,2698.8,2698.4,0.00555463]
[1739509566937,1.88086,2698.8,2698.5,0.74104]
[1739509567126,1.1399,2698.8,2698.5,0.74104]
[1739509567436,1.88088,2698.8,2698.5,0.74104]
[1739509567835,0.74099,2698.7,2698.4,0.74661463]
[1739509568135,0.74102,2698.6,2698.4,0.00555463]
[1739509568339,0.549,2698.6,2698.4,0.00555463]
[1739509568541,1.29003,2698.6,2698.4,0.00555463]
[1739509569844,0.74104,2698.5,2698.4,0.00555463]
[1739509570537,0.549,2698.6,2698.4,0.00555463]
[1739509570740,0.74104,2698.5,2698.4,0.00555463]
[1739509573142,1.29002,2698.6,2698.4,0.74661463]
[1739509573344,0.549,2698.6,2698.4,0.00555463]
[1739509573541,0.549,2698.6,2698.4,0.74662463]
[1739509574546,0.549,2698.6,2698.4,0.00555463]
[1739509574846,1.29002,2698.6,2698.4,0.00555463]
[1739509575540,0.549,2698.6,2698.4,0.00555463]
[1739509575847,1.29004,2698.6,2698.4,0.00555463]
[1739509578246,0.74104,2698.5,2698.4,0.00555463]
[1739509578443,1.29004,2698.6,2698.4,0.00555463]
[1739509578744,0.74104,2698.5,2698.4,0.00555463]
[1739509578941,3.65148537,2698.5,2698.4,0.00555463]
[1739509579845,2.91044537,2698.5,2698.4,0.00555463]
[1739509580341,3.65148537,2698.5,2698.4,0.00555463]
[1739509580838,2.91044537,2698.5,2698.4,0.00555463]
[1739509581045,3.65148537,2698.5,2698.4,0.00555463]
[1739509582349,3.46585224,2698.6,2698.2,0.5861]
[1739509582643,0.74112,2698.3,2697.7,4.3605]
[1739509582843,0.74112,2698.3,2698.0,0.74117]
[1739509583043,0.5599,2698.2,2698.1,0.74115]
[1739509583239,0.5599,2698.2,2697.7,4.3605]
[1739509583741,0.5599,2698.2,2697.7,4.36420308]
[1739509583939,0.5599,2698.2,2697.9,0.74119]
[1739509584140,1.30103,2698.2,2697.7,4.36420308]
[1739509584340,0.5599,2698.2,2697.7,4.36420308]
[1739509584736,0.5599,2698.2,2697.9,0.7412]
[1739509584941,0.5599,2698.2,2697.9,0.74119]
[1739509585647,1.86621715,2698.2,2697.9,0.74119]
[1739509586139,1.86621715,2698.2,2697.8,1.30631715]
[1739509586541,0.74116,2698.1,2697.8,1.30631715]
[1739509586741,1.608,2698.1,2697.8,2.04753715]
[1739509587141,1.608,2698.1,2697.8,1.30631715]
[1739509587339,1.608,2698.1,2698.0,0.74118]
[1739509587749,1.608,2698.1,2697.9,0.74119]
[1739509588050,1.608,2698.1,2697.8,1.30631715]
[1739509588251,1.608,2698.1,2697.8,2.04753715]
[1739509588549,1.608,2698.1,2697.8,1.30631715]
[1739509589141,1.608,2698.1,2697.9,0.74119]
[1739509589342,1.608,2698.1,2697.8,1.30631715]
[1739509589542,1.608,2698.1,2698.0,0.74118]
[1739509589949,1.608,2698.1,2697.8,1.30631715]
[1739509590150,2.34916,2698.1,2697.8,2.04753715]
[1739509590352,1.608,2698.1,2697.8,1.30631715]
[1739509591039,2.34916,2698.1,2697.8,2.04754715]
[1739509591341,1.608,2698.1,2697.9,0.74119]
[1739509592047,1.608,2698.1,2698.0,0.589]
[1739509593352,1.608,2698.1,2698.0,1.33018]
[1739509594052,1.608,2698.1,2698.0,0.589]
[1739509594651,1.608,2698.1,2698.0,1.33018]
[1739509594847,1.608,2698.1,2697.9,0.74119]
[1739509595547,1.608,2698.1,2698.0,0.74118]
[1739509596648,0.5599,2698.2,2698.0,0.0035257]
[1739509596850,3.49576685,2698.3,2698.0,1.30984285]
[1739509597056,0.58532148,2698.3,2698.2,2.04744715]
[1739509597246,2.19332148,2698.6,2698.2,1.30631715]
[1739509597456,2.19332148,2698.6,2698.5,0.74104]
[1739509597948,6.5409,2698.7,2698.6,0.74102]
[1739509598148,6.5409,2698.7,2698.5,1.87602]
[1739509599557,6.5409,2698.7,2698.5,1.135]
[1739509600751,6.5409,2698.7,2698.5,1.87603]
[1739509601254,6.5409,2698.7,2698.6,2.04733715]
[1739509603154,7.12655899,2698.7,2698.6,1.30631715]
[1739509603359,7.12655899,2698.7,2698.5,1.87603]
[1739509603955,6.5409,2698.7,2698.6,0.74102]
[1739509604155,3.3331,2698.7,2698.6,0.74102]
[1739509605353,3.3331,2698.7,2698.6,2.04733715]
[1739509606344,6.5409,2698.7,2698.4,1.30631715]
[1739509606549,1.32660551,2698.6,2698.4,1.30631715]
[1739509606854,0.58557551,2698.6,2698.4,1.30631715]
[1739509607049,0.58557551,2698.6,2698.4,2.04737715]
[1739509607256,7.2819,2698.7,2698.4,2.04737715]
[1739509607650,0.74103,2698.6,2698.4,1.30631715]
[1739509608651,7.2819,2698.7,2698.4,1.30631715]
[1739509608960,6.5409,2698.7,2698.5,0.74103]
[1739509609154,7.2819,2698.7,2698.5,0.74103]
[1739509609353,6.5409,2698.7,2698.4,1.30631715]
[1739509609556,7.28192,2698.7,2698.4,2.04736715]
[1739509609854,0.74103,2698.6,2698.4,2.04736715]
[1739509610158,7.2819,2698.7,2698.4,2.04736715]
[1739509610347,7.2819,2698.7,2698.4,1.30631715]
[1739509610747,7.2819,2698.7,2698.4,2.04735715]
[1739509611052,6.5409,2698.7,2698.4,1.30631715]
[1739509611253,7.28191,2698.7,2698.5,0.74104]
[1739509612355,0.74102,2698.6,2698.4,2.04737715]
[1739509612858,0.74104,2698.6,2698.4,2.04737715]
[1739509613160,0.74104,2698.5,2698.4,2.04737715]
[1739509613658,0.74104,2698.5,2698.4,1.30631715]
[1739509613961,0.74104,2698.5,2698.4,2.04738715]
[1739509614662,0.74104,2698.5,2698.4,1.30631715]
[1739509615064,6.5409,2698.7,2698.4,1.30631715]
[1739509615362,0.74104,2698.5,2698.4,1.30631715]
[1739509615562,6.5409,2698.7,2698.4,2.04738715]
[1739509615762,0.74104,2698.6,2698.4,2.04738715]
[1739509616857,6.5409,2698.7,2698.4,1.30631715]
[1739509617055,0.74104,2698.5,2698.3,0.7411]
[1739509617456,0.5475,2698.4,2698.3,0.7411]
[1739509620063,5.9782,2698.7,2698.2,2.40051715]
[1739509620263,5.9782,2698.7,2698.5,1.30631715]
[1739509620664,5.413,2698.7,2698.6,0.74102]
[1739509620863,5.413,2698.7,2698.6,1.88732]
[1739509621160,5.413,2698.7,2698.6,1.1463]
[1739509621367,5.413,2698.7,2698.6,1.88732]
[1739509621565,5.99933112,2698.7,2698.6,1.88732]
[1739509621865,1.18353112,2698.7,2698.6,1.88732]
[1739509622060,0.58633112,2698.7,2698.6,1.88732]
[1739509622258,2.1822,2698.9,2698.6,1.6913]
[1739509622259,3.50947112,2698.9,2698.6,1.6913]
[1739509622455,0.74099,2698.7,2698.6,1.6913]
[1739509622669,0.74099,2698.7,2698.6,1.1463]
[1739509622866,1.90378,2698.8,2698.6,1.1463]
[1739509623167,1.74913112,2698.8,2698.6,1.1463]
[1739509623353,1.1628,2698.8,2698.6,1.88731]
[1739509623559,1.1628,2698.8,2698.6,1.1463]
[1739509623865,1.1628,2698.8,2698.6,1.8873]
[1739509624065,1.74913112,2698.8,2698.6,1.8873]